bitfinex-derivatives/quotes_BTCF0:USTF0_20240917
["timestamp","ask_amount","ask_price","bid_price","bid_amount"]
[1726595536934,0.0044597,60991.0,60990.0,0.442768]
[1726595537220,0.0044597,60991.0,60990.0,0.524736]
[1726595537418,1.5,61001.0,60999.0,0.081956]
[1726595537625,1.5,61001.0,60999.0,0.271956]
[1726595538023,1.5,61001.0,60999.0,0.081956]
[1726595538429,0.46988865,61000.0,60995.0,0.0024592]
[1726595538610,0.05878243,60999.0,60995.0,0.0024592]
[1726595538810,0.19104624,60999.0,60995.0,0.0844202]
[1726595539120,0.05030781,60998.0,60995.0,0.0844202]
[1726595539316,0.05030781,60997.0,60995.0,0.0844202]
[1726595539625,0.05030781,60996.0,60995.0,0.0844202]
[1726595539814,0.13226581,60998.0,60995.0,0.0034592]
[1726595540014,0.05030781,60997.0,60995.0,0.0034592]
[1726595540425,0.08196,60996.0,60995.0,0.0034592]
[1726595540623,0.13226781,60996.0,60995.0,0.0034592]
[1726595540819,0.13226781,60996.0,60995.0,0.01287308]
[1726595541022,0.13226781,60996.0,60995.0,0.0044592]
[1726595541425,0.21422781,60996.0,60995.0,0.0044592]
[1726595541724,0.13226781,60996.0,60995.0,0.0044592]
[1726595541923,0.13226781,60996.0,60995.0,0.0034592]
[1726595542115,0.13226781,60996.0,60995.0,0.0044592]
[1726595542422,0.21422781,60996.0,60995.0,0.0044592]
[1726595543426,0.081973,60986.0,60985.0,0.08443443]
[1726595543625,0.6830888,60986.0,60985.0,0.00245943]
[1726595543827,0.69156215,60986.0,60985.0,0.01202383]
[1726595544022,0.69156215,60986.0,60985.0,0.00245943]
[1726595544217,0.60958915,60986.0,60985.0,0.08443443]
[1726595544523,0.41958915,60986.0,60985.0,0.08443443]
[1726595544720,0.42158915,60986.0,60985.0,0.08443443]
[1726595545032,0.42158915,60986.0,60985.0,0.09372954]
[1726595545623,0.3628,60986.0,60985.0,0.09372954]
[1726595545820,0.06080071,60986.0,60985.0,0.09372954]
[1726595546127,0.05231742,60986.0,60985.0,0.36570454]
[1726595546326,0.05231742,60986.0,60985.0,0.28372954]
[1726595546524,0.3222482,60991.0,60990.0,0.081968]
[1726595546727,0.3222482,60991.0,60990.0,0.20688908]
[1726595547823,0.006,60991.0,60990.0,0.20788908]
[1726595548135,0.006,60991.0,60990.0,0.49548857]
[1726595548326,0.006,60991.0,60990.0,0.39788908]
[1726595548534,0.006,60991.0,60990.0,0.39887857]
[1726595549331,0.006,60991.0,60990.0,0.20887857]
[1726595549735,0.006,60991.0,60990.0,0.12691057]
[1726595549926,0.448767,60991.0,60990.0,0.20825731]
[1726595550127,0.448767,60991.0,60990.0,0.002]
[1726595550323,0.448767,60991.0,60990.0,0.083968]
[1726595550324,0.3668,60991.0,60990.0,0.083968]
[1726595550630,0.3668,60991.0,60988.0,0.08134674]
[1726595550932,0.081969,60989.0,60986.0,0.08134674]
[1726595551134,0.3668,60991.0,60986.0,0.08134674]
[1726595551135,1.5,60988.0,60986.0,0.08134674]
[1726595551319,1.5,60988.0,60987.0,0.08134674]
[1726595551525,1.69,60988.0,60986.0,0.08134674]
[1726595552633,1.5,60988.0,60987.0,0.20627127]
[1726595552821,1.5,60988.0,60987.0,0.28824329]
[1726595553026,1.5,60988.0,60987.0,0.28824271]
[1726595553227,1.5,60988.0,60987.0,0.20688974]
[1726595553426,1.5,60988.0,60987.0,0.081972]
[1726595553630,1.502,60988.0,60987.0,0.081972]
[1726595554133,0.002,60988.0,60987.0,0.442772]
[1726595554333,0.002,60988.0,60987.0,0.081972]
[1726595554725,0.002,60988.0,60985.0,0.01175454]
[1726595554726,0.003,60988.0,60985.0,0.09372954]
[1726595554932,0.084971,60988.0,60985.0,0.01175454]
[1726595555126,0.632773,60986.0,60985.0,0.01175454]
[1726595555738,0.442773,60986.0,60985.0,0.01175454]
[1726595555926,0.3608,60986.0,60985.0,0.09372954]
[1726595557130,0.3618,60986.0,60985.0,0.01175454]
[1726595557622,0.633773,60986.0,60985.0,0.01175454]
[1726595557828,0.760173,60986.0,60985.0,0.01175454]
[1726595558027,0.760173,60986.0,60973.0,0.08199]
[1726595558028,0.081988,60975.0,60973.0,0.08199]
[1726595558243,0.19,60974.0,60971.0,0.01158441]
[1726595558531,0.19,60974.0,60958.0,0.3271]
[1726595558532,0.081999,60968.0,60958.0,0.3271]
[1726595558738,0.3608,60972.0,60961.0,0.19]
[1726595559036,0.081993,60971.0,60968.0,0.081997]
[1726595559234,0.081993,60971.0,60964.0,0.0844624]
[1726595559430,0.3608,60967.0,60964.0,0.0024604]
[1726595559626,0.272001,60965.0,60964.0,0.0024604]
[1726595559827,0.082001,60965.0,60964.0,0.0024604]
[1726595560023,1.582001,60965.0,60964.0,0.0024604]
[1726595560226,1.5,60965.0,60964.0,0.0024604]
[1726595560727,0.442799,60967.0,60966.0,0.082]
[1726595560728,0.3608,60967.0,60966.0,0.082]
[1726595561439,1.8608,60967.0,60966.0,0.082]
[1726595561936,1.8608,60967.0,60964.0,0.0844624]
[1726595562328,1.8638,60967.0,60966.0,0.0650409]
[1726595562523,1.8638,60967.0,60964.0,0.0844624]
[1726595562733,1.8688,60967.0,60966.0,0.06603393]
[1726595563125,1.8688,60967.0,60966.0,0.001]
[1726595563330,1.8688,60967.0,60966.0,0.0497422]
[1726595563838,1.8668,60967.0,60964.0,0.07670971]
[1726595564038,1.8668,60967.0,60966.0,0.04872798]
[1726595564231,1.8668,60967.0,60966.0,0.04871979]
[1726595565032,0.3638,60967.0,60966.0,0.082]
[1726595565241,0.3668,60967.0,60966.0,0.082]
[1726595565434,0.006,60967.0,60966.0,0.082]
[1726595565835,0.3608,60972.0,60968.0,0.081997]
[1726595566037,0.3608,60972.0,60971.0,0.048689]
[1726595566632,0.3608,60972.0,60969.0,0.081996]
[1726595567035,0.3608,60972.0,60971.0,0.04868835]
[1726595567239,0.3608,60972.0,60968.0,0.06491866]
[1726595567437,0.3608,60972.0,60967.0,0.06491866]
[1726595567438,0.19,60970.0,60967.0,0.06491866]
[1726595567939,0.19,60970.0,60968.0,0.001]
[1726595568134,0.3688,60972.0,60968.0,0.002]
[1726595568335,0.3688,60972.0,60971.0,0.081993]
[1726595568538,0.3678,60972.0,60971.0,0.081993]
[1726595569041,0.3678,60972.0,60971.0,0.13068951]
[1726595569236,0.3618,60972.0,60971.0,0.13068951]
[1726595569840,0.3618,60972.0,60971.0,0.13168951]
[1726595570240,0.3728,60972.0,60971.0,0.083993]
[1726595571533,0.454792,60972.0,60971.0,0.002]
[1726595571935,0.454792,60972.0,60971.0,0.01147583]
[1726595572139,0.454792,60972.0,60971.0,0.002]
[1726595574346,0.454792,60972.0,60971.0,0.01157591]
[1726595574650,0.454792,60972.0,60971.0,0.002]
[1726595575448,0.454792,60972.0,60971.0,0.083993]
[1726595575841,0.454792,60972.0,60971.0,0.002]
[1726595576151,0.454792,60972.0,60971.0,0.01138978]
[1726595576447,0.454792,60972.0,60971.0,0.002]
[1726595576649,0.454792,60972.0,60971.0,0.083993]
[1726595577032,0.093992,60972.0,60971.0,0.083993]
[1726595577233,0.454792,60972.0,60971.0,0.083993]
[1726595579939,0.3728,60972.0,60971.0,0.083993]
[1726595580139,0.3728,60972.0,60971.0,0.165986]
[1726595580547,0.3728,60972.0,60971.0,0.083993]
[1726595584352,0.3728,60972.0,60971.0,0.20894716]
[1726595585145,0.012,60972.0,60971.0,0.56974716]
[1726595585548,1.5,60973.0,60972.0,0.081992]
[1726595585748,0.36326014,60979.0,60978.0,0.081984]
[1726595586058,0.00245966,60992.0,60978.0,0.67575416]
[1726595586059,0.122,60991.0,60978.0,0.67575416]
[1726595586256,1.5,60990.0,60986.0,0.08143762]
[1726595587147,0.08197,60989.0,60986.0,0.08143762]
[1726595587347,1.5,60990.0,60987.0,0.20636783]
[1726595587554,1.5,60990.0,60986.0,0.08143762]
[1726595588266,1.5,60990.0,60986.0,0.16340962]
[1726595588552,1.5,60990.0,60988.0,0.081969]
[1726595588753,1.5,60990.0,60989.0,0.081969]
[1726595589351,1.501,60990.0,60989.0,0.081969]
[1726595589550,1.501,60990.0,60986.0,0.002]
[1726595589551,1.501,60990.0,60987.0,0.16340862]
[1726595589861,1.501,60990.0,60988.0,0.001]
[1726595590048,1.5,60990.0,60988.0,0.001]
[1726595590248,1.501,60990.0,60989.0,0.002]
[1726595590756,1.501,60990.0,60989.0,0.083969]
[1726595590952,0.001,60990.0,60989.0,0.083969]
[1726595591152,0.001,60990.0,60989.0,0.20888708]
[1726595591659,0.32325001,60992.0,60991.0,0.081967]
[1726595591857,1.5,60995.0,60988.0,0.5508]
[1726595592159,0.00245989,61003.0,60998.0,0.081957]
[1726595592358,0.00245989,61003.0,61000.0,0.632753]
[1726595592750,0.00245989,61003.0,61001.0,0.081953]
[1726595592751,1.5,61002.0,61001.0,0.081953]
[1726595592950,1.5,61002.0,60996.0,0.19]
[1726595592951,1.5,61002.0,60999.0,0.081955]
[1726595593148,1.5,61002.0,60996.0,0.19]
[1726595593354,1.5,61002.0,60992.0,0.04877032]
[1726595593553,0.5508,60999.0,60990.0,0.04877032]
[1726595593748,0.19,60994.0,60989.0,0.05794082]
[1726595594056,0.3142,60998.0,60989.0,0.0091705]
[1726595594356,0.3142,60998.0,60990.0,0.23877032]
[1726595594357,0.1242,60998.0,60990.0,0.23877032]
[1726595594753,0.1242,60998.0,60992.0,0.081965]
[1726595594945,0.1242,60998.0,60994.0,0.081962]
[1726595595149,0.1242,60998.0,60996.0,0.001]
[1726595595462,0.081958,60997.0,60996.0,0.001]
[1726595595851,0.081958,60997.0,60992.0,0.081965]
[1726595596155,0.08196,60996.0,60992.0,0.082965]
[1726595596360,0.1242,60998.0,60996.0,0.001]
[1726595596660,0.081958,60997.0,60996.0,0.001]
[1726595596853,0.081958,60997.0,60996.0,0.002]
[1726595597561,0.3608,60999.0,60996.0,0.083959]
[1726595597761,0.442757,60999.0,60996.0,0.002]
[1726595598059,0.081957,60998.0,60996.0,0.002]
[1726595598260,0.081957,60998.0,60994.0,0.081962]
[1726595598460,0.442756,60999.0,60996.0,0.001]
[1726595598847,0.081958,60998.0,60996.0,0.001]
[1726595599049,0.081958,60998.0,60996.0,0.002]
[1726595599962,0.081958,60998.0,60996.0,0.001]
[1726595600866,0.3608,60999.0,60998.0,0.081957]
[1726595601568,0.05878401,61001.0,61000.0,0.081954]
[1726595601767,0.05030455,61001.0,61000.0,0.081954]
[1726595602867,0.05030455,61001.0,61000.0,0.082954]
[1726595604560,0.05130455,61001.0,61000.0,0.083954]
[1726595606667,0.001,61001.0,61000.0,0.083954]
[1726595612265,0.001,61001.0,61000.0,0.002]
[1726595612766,0.001,61001.0,61000.0,0.083954]
[1726595613868,0.05130266,61001.0,61000.0,0.083954]
[1726595615873,0.21520866,61001.0,61000.0,0.002]
[1726595616269,0.164906,61001.0,61000.0,0.002]
[1726595616571,0.081969,60990.0,60986.0,0.081973]
[1726595616776,0.081969,60990.0,60983.0,0.6879]
[1726595616777,0.263,60989.0,60987.0,0.08443045]
[1726595617167,0.263,60989.0,60987.0,0.01176695]
[1726595617168,0.34497,60989.0,60987.0,0.01176695]
[1726595617380,0.263,60989.0,60987.0,0.01176695]
[1726595617672,0.081971,60988.0,60987.0,0.01176695]
[1726595617876,0.14077001,60988.0,60987.0,0.01176695]
[1726595618268,1.64077001,60988.0,60987.0,0.01176695]
[1726595618472,1.70804761,60988.0,60987.0,0.01176695]
[1726595618774,3.0788,60988.0,60978.0,0.081984]
[1726595618978,0.3608,60982.0,60978.0,0.081984]
[1726595619166,0.41960059,60982.0,60978.0,0.081984]
[1726595619368,0.081981,60981.0,60978.0,0.081984]
[1726595619572,0.26628159,60981.0,60978.0,0.081984]
[1726595619772,0.081983,60979.0,60974.0,0.00246006]
[1726595620073,0.081983,60979.0,60975.0,0.081988]
[1726595620271,0.081983,60979.0,60978.0,0.007]
[1726595620571,0.271983,60979.0,60978.0,0.007]
[1726595620777,0.081983,60979.0,60978.0,0.007]
[1726595620979,0.081983,60979.0,60978.0,0.012]
[1726595621480,0.081983,60979.0,60978.0,0.007]
[1726595621775,0.081983,60979.0,60978.0,0.005]
[1726595622671,0.081983,60979.0,60978.0,0.002]
[1726595627580,0.081983,60979.0,60978.0,0.083984]
[1726595629575,0.4863,60981.0,60980.0,0.081981]
[1726595629781,0.3608,60981.0,60980.0,0.081981]
[1726595630466,0.00246011,60983.0,60982.0,0.081979]
[1726595630666,0.00246011,60983.0,60982.0,0.714758]
[1726595630875,0.3208,60997.0,60982.0,0.714758]
[1726595630876,0.2548,60996.0,60993.0,0.081964]
[1726595631582,0.2548,60996.0,60993.0,0.271964]
[1726595631776,0.2508,61004.0,60993.0,1.64264]
[1726595631970,0.2508,61004.0,61000.0,0.5508]
[1726595632173,0.1285,61008.0,61004.0,0.081948]
[1726595632481,0.1285,61008.0,61005.0,0.081947]
[1726595632482,1.6285,61008.0,61005.0,0.081947]
[1726595632679,1.6285,61008.0,61000.0,0.5508]
[1726595633073,1.6285,61008.0,61004.0,0.081949]
[1726595633884,0.19,61005.0,61000.0,0.00228]
[1726595634086,0.001,61004.0,61000.0,0.001]
[1726595634475,0.081952,61002.0,61000.0,0.001]
[1726595634671,0.1219,61003.0,60993.0,0.3608]
[1726595634876,0.1219,61003.0,60993.0,0.37040051]
[1726595635075,0.1219,61003.0,60994.0,0.19]
[1726595635376,0.1219,61003.0,61000.0,0.002]
[1726595635779,0.081952,61002.0,61000.0,0.002]
[1726595636083,0.1219,61003.0,61000.0,0.002]
[1726595636280,0.271953,61001.0,61000.0,0.002]
[1726595636787,0.271953,61001.0,61000.0,0.001]
[1726595636977,0.081958,60998.0,60994.0,0.001]
[1726595637683,0.19,60996.0,60994.0,0.001]
[1726595638184,0.081961,60995.0,60994.0,0.002]
[1726595638388,0.081961,60995.0,60994.0,0.001]
[1726595638389,0.163922,60995.0,60994.0,0.001]
[1726595638575,1.255762,60995.0,60994.0,0.001]
[1726595638776,2.755762,60995.0,60994.0,0.001]
[1726595639389,0.081971,60988.0,60976.0,0.19]
[1726595639892,0.3608,60989.0,60988.0,0.081971]
[1726595641291,0.442769,60989.0,60988.0,0.081971]
[1726595641590,0.081971,60988.0,60987.0,0.01266366]
[1726595641775,0.081971,60988.0,60987.0,0.01166366]
[1726595642382,0.215971,60988.0,60987.0,0.01166366]
[1726595642791,0.217971,60988.0,60987.0,0.01266366]
[1726595643183,0.349671,60988.0,60987.0,0.01266366]
[1726595644091,0.351671,60988.0,60987.0,0.01366366]
[1726595645384,0.351671,60988.0,60987.0,0.09563566]
[1726595647484,0.433642,60988.0,60987.0,0.01366366]
[1726595648189,0.081988,60976.0,60975.0,0.081988]
[1726595648594,0.081984,60978.0,60977.0,0.081985]
[1726595648793,1.5,60978.0,60977.0,0.081985]
[1726595650388,1.5,60978.0,60977.0,0.085985]
[1726595651481,1.5,60978.0,60977.0,0.087985]
[1726595653386,0.00246,60982.0,60977.0,0.006]
[1726595653586,0.00246,60982.0,60980.0,0.081981]
[1726595653786,0.00246,60982.0,60977.0,0.087985]
[1726595653987,0.081982,60980.0,60977.0,0.087985]
[1726595654596,0.081982,60980.0,60977.0,0.006]
[1726595654910,1.5,60981.0,60980.0,0.081981]
[1726595655493,1.58198,60981.0,60980.0,0.081981]
[1726595656001,1.58198,60981.0,60979.0,0.081983]
[1726595656205,1.5,60981.0,60980.0,0.081981]
[1726595656694,1.501,60981.0,60980.0,0.082981]
[1726595656892,0.001,60981.0,60980.0,0.164962]
[1726595657197,0.3608,61000.0,60991.0,0.081967]
[1726595657391,1.5,60999.0,60991.0,0.632767]
[1726595658100,0.05030964,60998.0,60991.0,0.632767]
[1726595658292,0.00545933,60992.0,60991.0,1.725647]
[1726595658492,0.00845933,60992.0,60991.0,1.856747]
[1726595659393,0.00736707,60992.0,60991.0,1.856747]
[1726595659598,1.5,60999.0,60998.0,0.081957]
[1726595660507,0.00245897,61007.0,61001.0,0.081953]
[1726595660508,0.19245897,61007.0,61001.0,0.081953]
[1726595661003,1.5,61006.0,61001.0,0.081953]
[1726595661307,0.081956,60999.0,60998.0,0.001]
[1726595661604,0.3608,61002.0,60999.0,0.081955]
[1726595661804,0.3608,61002.0,60998.0,0.002]
[1726595662009,1.5,61001.0,60998.0,0.002]
[1726595662209,1.5,61001.0,60998.0,0.01043027]
[1726595662497,1.5,61001.0,60998.0,0.001]
[1726595663297,0.081955,61000.0,60998.0,0.001]
[1726595663498,1.5,61001.0,60998.0,0.001]
[1726595663696,1.5,61001.0,61000.0,0.081954]
[1726595663999,1.5,61001.0,61000.0,0.271954]
[1726595664602,0.3608,61002.0,61000.0,0.271954]
[1726595664603,0.3608,61002.0,61001.0,0.081953]
[1726595666003,0.3608,61002.0,61001.0,0.082953]
[1726595666800,1.5,61006.0,61005.0,0.081948]
[1726595667108,1.60908235,61006.0,61001.0,0.1258]
[1726595667307,0.10908235,61005.0,61002.0,0.081951]
[1726595667515,0.05030332,61004.0,61002.0,0.081951]
[1726595667701,0.05030332,61004.0,61001.0,0.1268]
[1726595667702,0.05030332,61003.0,61001.0,0.002]
[1726595668007,0.13225927,61002.0,61001.0,0.001]
[1726595668208,0.1910383,61002.0,61001.0,0.001]
[1726595668707,0.081957,60998.0,60997.0,0.01183181]
[1726595668902,0.13226427,60998.0,60997.0,0.01183181]
[1726595671110,0.13226427,60998.0,60997.0,0.01283181]
[1726595672002,0.13226427,60998.0,60997.0,0.01383181]
[1726595672910,0.13226634,60998.0,60997.0,0.01383181]
[1726595673903,0.081957,60998.0,60997.0,0.06260213]
[1726595674916,0.081957,60998.0,60997.0,0.01383181]
[1726595676102,0.458754,61001.0,60997.0,0.01383181]
[1726595676304,0.458754,61001.0,60998.0,0.081956]
[1726595676805,0.3768,61001.0,60997.0,0.01383181]
[1726595677006,0.081956,60999.0,60997.0,0.09578881]
[1726595677215,0.081956,60999.0,60997.0,0.14455913]
[1726595677409,0.081956,60999.0,60998.0,0.081957]
[1726595677915,0.3768,61001.0,61000.0,0.081954]
[1726595678106,0.3768,61001.0,60998.0,0.04977032]
[1726595678308,0.458754,61001.0,60999.0,0.04877032]
[1726595679211,0.458754,61001.0,61000.0,0.04877032]
[1726595679516,0.458754,61001.0,60999.0,0.04877032]
[1726595679712,0.458754,61001.0,60999.0,0.13072532]
[1726595680110,0.458754,61001.0,61000.0,0.04877032]
[1726595680504,0.458753,61001.0,61000.0,0.13072432]
[1726595680704,0.3768,61001.0,61000.0,0.13172432]
[1726595680906,1.5,61006.0,61000.0,0.001]
[1726595680907,1.581947,61006.0,61000.0,0.001]
[1726595681100,1.5,61006.0,61005.0,0.081948]
[1726595682313,1.5,61006.0,61005.0,0.083948]
[1726595683503,1.5,61006.0,61005.0,0.09353886]
[1726595683907,1.581946,61006.0,61005.0,0.01159086]
[1726595685208,1.581946,61006.0,61005.0,0.06041356]
[1726595685607,1.581946,61006.0,61005.0,0.14236156]
[1726595686212,1.581946,61006.0,61005.0,0.09353886]
[1726595687117,1.581946,61006.0,61005.0,0.15856596]
[1726595687512,0.08195,61004.0,61000.0,0.08128387]
[1726595688121,0.081953,61001.0,61000.0,0.08128387]
[1726595688517,0.08195,61003.0,60999.0,0.16323987]
[1726595688518,0.081954,61000.0,60999.0,0.16323987]
[1726595688720,0.081954,61000.0,60999.0,0.29825917]
[1726595689021,0.1322602,61000.0,60999.0,0.0920784]
[1726595691118,0.1352602,61000.0,60999.0,0.0940784]
[1726595692313,0.1352602,61000.0,60999.0,0.0121224]
[1726595693027,0.13526026,61000.0,60999.0,0.0121224]
[1726595694323,0.13526026,61000.0,60999.0,0.0940784]
[1726595694718,0.13526026,61000.0,60999.0,0.0121224]
[1726595696123,0.084954,61000.0,60999.0,0.0121224]
[1726595696826,0.084954,61000.0,60999.0,0.0940784]
[1726595699825,0.084954,61000.0,60999.0,0.0121224]
[1726595700421,0.274954,61000.0,60999.0,0.0121224]
[1726595700617,0.438862,61000.0,60999.0,0.0121224]
[1726595700816,0.4918,60999.0,60989.0,0.04891823]
[1726595701024,0.4918,60999.0,60987.0,0.00245939]
[1726595701025,0.163942,60988.0,60987.0,0.05137762]
[1726595701229,0.163942,60988.0,60987.0,0.00245939]
[1726595701230,0.606713,60988.0,60987.0,0.00245939]
[1726595701422,0.081984,60978.0,60977.0,0.081985]
[1726595701616,1.942784,60978.0,60977.0,0.081985]
[1726595701818,0.442784,60978.0,60977.0,0.081985]
[1726595702028,0.3608,60978.0,60977.0,0.081985]
[1726595702325,1.8608,60978.0,60977.0,0.081985]
[1726595702529,1.5,60978.0,60977.0,0.081985]
[1726595703017,0.081984,60978.0,60977.0,0.081985]
[1726595703420,0.3608,60981.0,60974.0,0.01277612]
[1726595703421,0.081988,60975.0,60974.0,0.01277612]
[1726595703615,0.081988,60975.0,60974.0,0.09476512]
[1726595703616,0.074988,60975.0,60974.0,0.09476512]
[1726595704022,0.069988,60975.0,60974.0,0.09476512]
[1726595704422,0.066988,60975.0,60974.0,0.09476512]
[1726595704619,0.509776,60975.0,60974.0,0.01277612]
[1726595704821,1.001776,60975.0,60974.0,0.01277612]
[1726595705032,1.735076,60975.0,60974.0,0.01046006]
[1726595705328,3.235076,60975.0,60974.0,0.01046006]
[1726595705835,0.082005,60963.0,60955.0,0.3608]
[1726595706132,0.3548,60963.0,60955.0,0.3608]
[1726595706635,0.3548,60963.0,60955.0,0.56104053]
[1726595706819,0.3488,60963.0,60962.0,0.082006]
[1726595707435,0.430804,60963.0,60962.0,0.082006]
[1726595707623,0.431804,60963.0,60962.0,0.082006]
[1726595708027,0.434804,60963.0,60962.0,0.082006]
[1726595709533,0.3528,60963.0,60955.0,0.3678]
[1726595709718,0.19,60960.0,60955.0,0.3678]
[1726595710526,0.2748,60962.0,60955.0,0.0100219]
[1726595710527,0.632814,60956.0,60955.0,0.0100219]
[1726595710740,0.082039,60937.0,60936.0,0.3271]
[1726595711037,0.3558,60941.0,60939.0,0.082036]
[1726595711221,1.5,60941.0,60940.0,0.082035]
[1726595711422,0.272021,60951.0,60938.0,0.19]
[1726595711423,0.3598,60948.0,60938.0,0.19]
[1726595711631,0.082029,60945.0,60942.0,0.082031]
[1726595711933,0.082026,60947.0,60944.0,0.08203]
[1726595712123,0.3598,60948.0,60945.0,0.082028]
[1726595712617,1.582027,60946.0,60942.0,0.082032]
[1726595712822,1.5,60946.0,60944.0,0.082029]
[1726595713426,1.582028,60946.0,60939.0,0.1351]
[1726595713835,0.082028,60945.0,60944.0,0.001]
[1726595714024,0.272028,60945.0,60944.0,0.001]
[1726595714729,0.082028,60945.0,60939.0,0.001]
[1726595715138,0.082028,60945.0,60939.0,0.191]
[1726595715334,0.001,60946.0,60943.0,0.19]
[1726595715637,0.00246138,60956.0,60944.0,0.001]
[1726595715835,0.08447538,60956.0,60951.0,0.272019]
[1726595716538,0.082016,60955.0,60951.0,0.272019]
[1726595716724,0.00246138,60956.0,60951.0,0.19]
[1726595716928,0.00246138,60956.0,60946.0,0.18101823]
[1726595716929,0.082024,60949.0,60946.0,0.18101823]
[1726595717132,0.082021,60951.0,60946.0,0.1321]
[1726595717529,0.082021,60951.0,60947.0,0.082026]
[1726595718138,0.082021,60951.0,60949.0,0.082022]
[1726595718531,0.3608,60952.0,60946.0,0.14198821]
[1726595718848,0.3608,60952.0,60951.0,0.08202]
[1726595719234,0.3608,60952.0,60947.0,0.396325]
[1726595719435,0.442819,60952.0,60948.0,0.082024]
[1726595719939,0.00246138,60956.0,60949.0,0.3608]
[1726595720341,0.082018,60953.0,60951.0,0.08202]
[1726595720538,0.00246138,60956.0,60955.0,0.082015]
[1726595720729,0.00246047,60967.0,60966.0,0.082]
[1726595721036,0.00246047,60967.0,60966.0,0.7148]
[1726595721235,0.00246047,60967.0,60966.0,0.6328]
[1726595721940,0.00246047,60967.0,60966.0,0.64312564]
[1726595722135,0.01646047,60967.0,60966.0,0.64312564]
[1726595722636,0.06547438,60967.0,60966.0,0.01032564]
[1726595722934,0.082,60966.0,60963.0,0.04859692]
[1726595723328,0.082003,60964.0,60963.0,0.04862437]
[1726595723528,0.082003,60964.0,60961.0,0.01272877]
[1726595723529,0.082006,60962.0,60961.0,0.01272877]
[1726595723839,0.5508,60964.0,60961.0,0.01272877]
[1726595724134,0.3608,60964.0,60961.0,0.01272877]
[1726595724330,0.3558,60964.0,60961.0,0.01272877]
[1726595724925,0.001,60966.0,60965.0,0.082001]
[1726595725139,0.001,60967.0,60966.0,0.082]
[1726595725340,0.00246074,60971.0,60969.0,0.081996]
[1726595725637,0.00246074,60971.0,60966.0,0.082]
[1726595725840,0.00246074,60971.0,60970.0,0.04863169]
[1726595726243,0.081995,60970.0,60965.0,0.44308387]
[1726595726438,0.081995,60970.0,60965.0,0.3618]
[1726595726828,0.19,60969.0,60965.0,0.001]
[1726595727135,0.082,60966.0,60965.0,0.001]
[1726595727740,0.082004,60964.0,60962.0,0.08128387]
[1726595728036,0.3608,60963.0,60961.0,0.01272877]
[1726595728242,0.082006,60962.0,60961.0,0.01272877]
[1726595729830,1.772006,60962.0,60961.0,0.01272877]
[1726595730036,1.582006,60962.0,60961.0,0.01272877]
[1726595730835,1.594006,60962.0,60961.0,0.01372877]
[1726595731034,1.795006,60962.0,60961.0,0.01372877]
[1726595731238,1.783006,60962.0,60961.0,0.01272877]
[1726595731436,1.796006,60962.0,60961.0,0.21999765]
[1726595731639,1.797006,60962.0,60961.0,0.09501264]
[1726595731839,1.797006,60962.0,60961.0,0.21999767]
[1726595732029,1.796006,60962.0,60961.0,0.21999767]
[1726595732229,1.796006,60962.0,60961.0,0.1387138]
[1726595732537,1.796006,60962.0,60961.0,0.01372877]
[1726595733335,1.796006,60962.0,60961.0,0.30201642]
[1726595733641,1.878012,60962.0,60961.0,0.22004167]
[1726595733837,0.082016,60954.0,60953.0,0.09772514]
[1726595734143,0.082016,60954.0,60947.0,0.00246115]
[1726595734144,0.082018,60953.0,60948.0,0.09772514]
[1726595734343,0.082024,60948.0,60947.0,0.00246115]
[1726595734541,0.082024,60948.0,60947.0,0.08448715]
[1726595734750,0.082027,60946.0,60941.0,0.09772514]
[1726595734935,1.5,60948.0,60947.0,0.082026]
[1726595735137,1.5,60948.0,60947.0,0.354052]
[1726595735336,1.5,60948.0,60947.0,0.796878]
[1726595735642,0.011,60962.0,60957.0,0.082012]
[1726595735840,0.011,60962.0,60957.0,0.354024]
[1726595736036,0.011,60962.0,60957.0,0.45164242]
[1726595736239,0.011,60962.0,60957.0,0.36962205]
[1726595736643,1.5,60961.0,60957.0,0.36962205]
[1726595737240,1.5,60961.0,60957.0,0.37947962]
[1726595737836,0.01446104,60958.0,60957.0,0.38047962]
[1726595738343,0.01446104,60958.0,60957.0,0.28286957]
[1726595738739,0.01446104,60958.0,60957.0,0.09286957]
[1726595739141,0.01446104,60958.0,60957.0,0.28286957]
[1726595739638,0.02546104,60958.0,60957.0,0.36488157]
[1726595739851,0.02546104,60958.0,60957.0,0.92714559]
[1726595740143,0.44525474,60971.0,60970.0,0.081995]
[1726595740144,0.36326074,60971.0,60970.0,0.081995]
[1726595740449,0.00246074,60971.0,60970.0,0.081995]
[1726595740740,0.00246074,60971.0,60970.0,0.17953527]
[1726595741243,0.01646074,60971.0,60970.0,0.081995]
[1726595741546,0.01646074,60971.0,60970.0,0.082995]
[1726595741547,0.02846074,60971.0,60970.0,0.082995]
[1726595742144,0.02846074,60971.0,60970.0,0.09289765]
[1726595742749,0.01446074,60971.0,60970.0,0.09289765]
[1726595743046,0.65725374,60971.0,60970.0,0.01190265]
[1726595743547,0.46725374,60971.0,60970.0,0.01190265]
[1726595743942,0.38526074,60971.0,60970.0,0.01190265]
[1726595744147,0.38526074,60971.0,60970.0,0.09389765]
[1726595745449,0.65725374,60971.0,60970.0,0.01190265]
[1726595745649,0.57526074,60971.0,60970.0,0.01190265]
[1726595746043,0.38526074,60971.0,60970.0,0.01190265]
[1726595746243,0.02446074,60971.0,60970.0,0.01190265]
[1726595746645,0.10645374,60971.0,60970.0,0.01190265]
[1726595747751,1.60645374,60971.0,60970.0,0.01190265]
[1726595748141,1.52446074,60971.0,60970.0,0.09389765]
[1726595750147,1.52446074,60971.0,60970.0,0.14268747]